[Event "27th OIBM 2024"]
[Site "Gmund am Tegernsee"]
[Date "2024.10.27"]
[Round "2.14"]
[White "Huber, Benedikt"]
[Black "Heinz, Axel"]
[Result "0-1"]
[ECO "D30"]
[WhiteElo "2299"]
[BlackElo "2412"]
[Annotator "RC"]
[PlyCount "104"]
[EventDate "2024.09.16"]
[EventType "swiss"]
[EventCountry "GER"]
[SourceTitle "playchess.com"]
[Source "ChessBase"]
[SourceQuality "1"]
[TimeControl "40/5400+30:1800+30"]

1. Nf3 {[%emt 0:00:05]} Nf6 {[%emt 0:00:10]} 2. d4 {[%emt 0:00:31]} e6 {[%emt 0:00:56]} 3. c4 {[%emt 0:00:37]} d5 {[%emt 0:00:34]} 4. cxd5 {[%emt 0:00:08]} exd5 {[%emt 0:00:08]} 5. Bg5 {[%emt 0:00:06]} Be7 {[%emt 0:04:57]} 6. e3 {[%emt 0:00:30]} O-O {[%emt 0:16:40]} 7. Bd3 {[%emt 0:00:14]} Be6 {[%emt 0:16:07]} 8. O-O {[%emt 0:02:05]} Nbd7 {[%emt 0:00:47]} 9. Nc3 {[%emt 0:02:15]} c6 {[%emt 0:13:26]} 10. Qc2 {[%emt 0:02:47]} h6 {[%emt 0:01:11]} 11. Bh4 {[%emt 0:01:06]} Bd6 {[%emt 0:02:22]} 12. Rfc1 {[%emt 0:01:46]} a5 {[%emt 0:01:03]} 13. Rab1 {[%emt 0:08:57]} Bg4 {[%emt 0:01:24]} 14. Nd2 {[%emt 0:03:59]} Qb8 {[%emt 0:09:02]} 15. Bg3 {[%emt 0:03:07]} Bxg3 {[%emt 0:01:57]} 16. hxg3 {[%emt 0:04:24]} Qd6 {[%emt 0:02:06]} 17. Na4 {[%emt 0:01:06]} Qe7 {[%emt 0:02:34]} 18. a3 {[%emt 0:05:31]} Rfc8 {[%emt 0:04:02]} 19. b4 {[%emt 0:06:41]} axb4 {[%emt 0:00:24]} 20. axb4 {[%emt 0:00:03]} b5 {[%emt 0:02:02]} 21. Nc5 {[%emt 0:00:25]} Nb6 {[%emt 0:00:31]} 22. e4 {[%emt 0:02:49]} Nc4 {[%emt 0:00:47]} 23. e5 {[%emt 0:04:22]} Nd7 {[%emt 0:01:21]} 24. Nxc4 {[%emt 0:01:49]} dxc4 {[%emt 0:04:04]} 25. Bh7+ {[%emt 0:01:48]} Kh8 {[%emt 0:00:05]} 26. Bf5 {[%emt 0:00:09]} Bxf5 {[%emt 0:00:32]} 27. Qxf5 {[%emt 0:00:04]} Nb6 {[%emt 0:04:36]} 28. Ne4 {[%emt 0:02:21]} Nd5 {[%emt 0:00:35]} 29. Nd6 {[%emt 0:00:28]} Rf8 {[%emt 0:00:15]} 30. Qg4 {[%emt 0:13:36]} Qe6 {[%emt 0:06:58]} 31. Qh5 {[%emt 0:04:32]} Kg8 {[%emt 0:00:53]} 32. f4 {[%emt 0:06:42]} Ra2 {[%emt 0:00:22]} 33. f5 {[%emt 0:00:23]} Qd7 {[%emt 0:01:02]} 34. Ra1 {[%emt 0:04:46]} Rfa8 {[%emt 0:00:04]} 35. Rxa2 {[%emt 0:01:00]} Rxa2 {[%emt 0:00:28]} 36. Re1 {[%emt 0:01:29]} Ra8 {[%emt 0:02:19]} 37. Re4 {[%emt 0:11:08]} Nf6 {[%emt 0:01:23]} 38. exf6 {[%emt 0:01:47]} Qxd6 {[%emt 0:00:04]} 39. fxg7 {[%emt 0:01:07]} Qxg3 {[%emt 0:00:03]} 40. Qd1 {[%emt 0:00:03]} Ra2 {[%emt 0:01:04]} 41. Qf1 {[%emt 0:05:50]} Kxg7 {[%emt 0:08:14]} 42. f6+ {[%emt 0:01:58]} Kh7 {[%emt 0:04:02]} 43. Qf5+ {[%emt 0:11:19]} Qg6 {[%emt 0:00:10]} 44. Qf3 {[%emt 0:00:02]} c3 {[%emt 0:05:11]} 45. Re1 {[%emt 0:02:21]} Rd2 {[%emt 0:03:49]} 46. Rc1 {[%emt 0:01:50]} c2 {[%emt 0:00:23]} 47. Kh2 {[%emt 0:00:33]} Rxd4 {[%emt 0:01:36]} 48. g3 {[%emt 0:01:19]} Rd2+ {[%emt 0:02:02]} 49. Kg1 {[%emt 0:00:16]} h5 {[%emt 0:02:05]} 50. Kf1 {[%emt 0:00:16]} Qg4 {[%emt 0:00:38]} 51. Qe3 {[%emt 0:00:22]} Qd1+ {[%emt 0:00:18]} 52. Rxd1 {[%emt 0:00:04]} cxd1=Q+ {[%emt 0:00:09]} 0-1

[Event "27th OIBM 2024"]
[Site "Gmund am Tegernsee"]
[Date "2024.10.27"]
[Round "2.15"]
[White "Kerpe, Andreas"]
[Black "Colpe, Malte"]
[Result "0-1"]
[ECO "B21"]
[WhiteElo "2139"]
[BlackElo "2371"]
[Annotator "RC"]
[PlyCount "66"]
[EventDate "2024.09.16"]
[EventType "swiss"]
[EventCountry "GER"]
[SourceTitle "playchess.com"]
[Source "ChessBase"]
[SourceQuality "1"]
[TimeControl "40/5400+30:1800+30"]

1. e4 {[%emt 0:00:16]} c5 {[%emt 0:00:07]} 2. d3 {[%emt 0:00:04]} Nc6 {[%emt 0:01:22]} 3. Be2 {[%emt 0:02:16]} e6 {[%emt 0:01:06]} 4. f4 {[%emt 0:00:22]} d5 {[%emt 0:00:26]} 5. Nf3 {[%emt 0:04:42]} Bd6 {[%emt 0:01:26]} 6. O-O {[%emt 0:02:29]} Nge7 {[%emt 0:00:23]} 7. a4 {[%emt 0:03:51]} O-O {[%emt 0:01:40]} 8. c3 {[%emt 0:04:37]} f6 {[%emt 0:03:03]} 9. Na3 {[%emt 0:03:29]} a6 {[%emt 0:03:10]} 10. Be3 {[%emt 0:06:10]} Qc7 {[%emt 0:05:10]} 11. g3 {[%emt 0:03:14]} Bd7 {[%emt 0:03:40]} 12. Qd2 {[%emt 0:16:15]} Rab8 {[%emt 0:09:51]} 13. Nc2 {[%emt 0:03:46]} e5 {[%emt 0:05:45]} 14. f5 {[%emt 0:03:11]} d4 {[%emt 0:01:48]} 15. Bf2 {[%emt 0:06:49]} Na5 {[%emt 0:00:52]} 16. Ra2 {[%emt 0:01:32]} Be8 {[%emt 0:14:19]} 17. Na1 {[%emt 0:06:28]} Bf7 {[%emt 0:04:22]} 18. c4 {[%emt 0:01:11]} Nec6 {[%emt 0:02:49]} 19. b3 {[%emt 0:07:08]} b5 {[%emt 0:02:09]} 20. axb5 {[%emt 0:00:25]} axb5 {[%emt 0:00:13]} 21. Rb2 {[%emt 0:02:02]} Rb6 {[%emt 0:03:52]} 22. Rc2 {[%emt 0:08:54]} Rfb8 {[%emt 0:05:51]} 23. g4 {[%emt 0:02:48]} Nxb3 {[%emt 0:09:04]} 24. Nxb3 {[%emt 0:00:18]} bxc4 {[%emt 0:00:06]} 25. Nxc5 {[%emt 0:05:44]} c3 {[%emt 0:02:07]} 26. Rxc3 {[%emt 0:00:46]} dxc3 {[%emt 0:00:08]} 27. Qxc3 {[%emt 0:00:01]} Nd4 {[%emt 0:03:15]} 28. Nxd4 {[%emt 0:02:04]} Bxc5 {[%emt 0:02:42]} 29. Rc1 {[%emt 0:00:39]} Rc8 {[%emt 0:04:50]} 30. Qxc5 {[%emt 0:02:34]} Qxc5 {[%emt 0:00:07]} 31. Rxc5 {[%emt 0:00:03]} Rb1+ {[%emt 0:00:14]} 32. Kg2 {[%emt 0:00:15]} Rxc5 {[%emt 0:00:06]} 33. Nf3 {[%emt 0:00:34]} Rc2 {[%emt 0:00:27]} 0-1

[Event "27th OIBM 2024"]
[Site "Gmund am Tegernsee"]
[Date "2024.10.27"]
[Round "2.16"]
[White "Turel, Tugrul"]
[Black "Schramm, Christian"]
[Result "1/2-1/2"]
[ECO "B38"]
[WhiteElo "2135"]
[BlackElo "2361"]
[Annotator "RC"]
[PlyCount "100"]
[EventDate "2024.09.16"]
[EventType "swiss"]
[EventCountry "GER"]
[SourceTitle "playchess.com"]
[Source "ChessBase"]
[SourceQuality "1"]
[TimeControl "40/5400+30:1800+30"]

1. e4 {[%emt 0:00:08]} c5 {[%emt 0:00:31]} 2. Nf3 {[%emt 0:01:08]} g6 {[%emt 0:00:44]} 3. c4 {[%emt 0:01:40]} Bg7 {[%emt 0:00:32]} 4. d4 {[%emt 0:00:06]} cxd4 {[%emt 0:04:35]} 5. Nxd4 {[%emt 0:00:08]} Nc6 {[%emt 0:01:50]} 6. Be3 {[%emt 0:00:12]} Nf6 {[%emt 0:00:14]} 7. Nc3 {[%emt 0:00:08]} Nxd4 {[%emt 0:00:34]} 8. Bxd4 {[%emt 0:00:11]} d6 {[%emt 0:00:10]} 9. Be2 {[%emt 0:01:45]} O-O {[%emt 0:00:09]} 10. O-O {[%emt 0:00:28]} Be6 {[%emt 0:00:16]} 11. Qd3 {[%emt 0:16:36]} Nd7 {[%emt 0:03:30]} 12. f4 {[%emt 0:03:18]} Bxd4+ {[%emt 0:04:16]} 13. Qxd4 {[%emt 0:03:38]} Qb6 {[%emt 0:01:03]} 14. Qxb6 {[%emt 0:27:36]} Nxb6 {[%emt 0:01:10]} 15. Nd5 {[%emt 0:08:33]} Bxd5 {[%emt 0:02:43]} 16. exd5 {[%emt 0:03:06]} Rfc8 {[%emt 0:06:26]} 17. Rfc1 {[%emt 0:04:47]} a5 {[%emt 0:01:18]} 18. Kf2 {[%emt 0:07:24]} Rc7 {[%emt 0:10:54]} 19. b3 {[%emt 0:03:06]} Nd7 {[%emt 0:01:56]} 20. Ke3 {[%emt 0:03:52]} Nc5 {[%emt 0:03:52]} 21. Rab1 {[%emt 0:00:31]} Re8 {[%emt 0:02:17]} 22. Bf3 {[%emt 0:06:24]} Kg7 {[%emt 0:10:51]} 23. g3 {[%emt 0:00:39]} h6 {[%emt 0:05:35]} 24. a3 {[%emt 0:01:01]} Rec8 {[%emt 0:02:27]} 25. b4 {[%emt 0:00:40]} axb4 {[%emt 0:00:24]} 26. axb4 {[%emt 0:00:12]} Nd7 {[%emt 0:07:54]} 27. Kd4 {[%emt 0:00:19]} b5 {[%emt 0:03:11]} 28. Be2 {[%emt 0:01:55]} e5+ {[%emt 0:01:36]} 29. dxe6 {[%emt 0:00:20]} fxe6 {[%emt 0:00:02]} 30. Rb3 {[%emt 0:03:08]} e5+ {[%emt 0:04:45]} 31. fxe5 {[%emt 0:00:01]} dxe5+ {[%emt 0:00:03]} 32. Ke4 {[%emt 0:01:22]} bxc4 {[%emt 0:00:22]} 33. Rbc3 {[%emt 0:00:19]} Nf6+ {[%emt 0:07:07]} 34. Kf3 {[%emt 0:00:02]} Nd5 {[%emt 0:03:12]} 35. Rxc4 {[%emt 0:00:20]} Rxc4 {[%emt 0:01:18]} 36. Rxc4 {[%emt 0:00:01]} Rxc4 {[%emt 0:00:25]} 37. Bxc4 {[%emt 0:00:00]} Nxb4 {[%emt 0:00:09]} 38. Ke4 {[%emt 0:00:05]} Kf6 {[%emt 0:00:06]} 39. h4 {[%emt 0:01:10]} Nc6 {[%emt 0:03:17]} 40. g4 {[%emt 0:01:54]} Nd4 {[%emt 0:02:27]} 41. g5+ {[%emt 0:06:59]} hxg5 {[%emt 0:03:19]} 42. hxg5+ {[%emt 0:00:48]} Kxg5 {[%emt 0:00:02]} 43. Kxe5 {[%emt 0:00:07]} Nf3+ {[%emt 0:00:07]} 44. Ke6 {[%emt 0:03:56]} Kf4 {[%emt 0:02:26]} 45. Kf6 {[%emt 0:00:27]} g5 {[%emt 0:00:19]} 46. Be6 {[%emt 0:00:05]} Ne5 {[%emt 0:00:41]} 47. Bc8 {[%emt 0:00:30]} Ng4+ {[%emt 0:00:46]} 48. Kg6 {[%emt 0:00:07]} Ne3 {[%emt 0:00:07]} 49. Be6 {[%emt 0:00:21]} g4 {[%emt 0:00:49]} 50. Bxg4 {[%emt 0:00:08]} Ke5 {[%emt 0:32:43]} 1/2-1/2

[Event "27th OIBM 2024"]
[Site "Gmund am Tegernsee"]
[Date "2024.10.27"]
[Round "2.17"]
[White "Fuhrmann, Bahne"]
[Black "Womacka, Mathias"]
[Result "1/2-1/2"]
[ECO "A63"]
[WhiteElo "2132"]
[BlackElo "2345"]
[Annotator "RC"]
[PlyCount "112"]
[EventDate "2024.09.16"]
[EventType "swiss"]
[EventCountry "GER"]
[SourceTitle "playchess.com"]
[Source "ChessBase"]
[SourceQuality "1"]
[TimeControl "40/5400+30:1800+30"]

1. d4 {[%emt 0:00:03]} Nf6 {[%emt 0:00:12]} 2. c4 {[%emt 0:00:06]} e6 {[%emt 0:00:04]} 3. g3 {[%emt 0:00:04]} c5 {[%emt 0:00:25]} 4. d5 {[%emt 0:00:06]} exd5 {[%emt 0:00:05]} 5. cxd5 {[%emt 0:00:05]} d6 {[%emt 0:00:03]} 6. Nc3 {[%emt 0:00:06]} g6 {[%emt 0:00:07]} 7. Bg2 {[%emt 0:00:10]} Bg7 {[%emt 0:00:07]} 8. Nf3 {[%emt 0:00:05]} O-O {[%emt 0:00:17]} 9. O-O {[%emt 0:00:06]} Nbd7 {[%emt 0:00:09]} 10. a4 {[%emt 0:00:27]} a6 {[%emt 0:00:28]} 11. Bf4 {[%emt 0:00:33]} Qe7 {[%emt 0:00:15]} 12. Re1 {[%emt 0:02:57]} Ng4 {[%emt 0:03:45]} 13. Bg5 {[%emt 0:02:03]} f6 {[%emt 0:01:19]} 14. Bd2 {[%emt 0:00:06]} Nge5 {[%emt 0:01:51]} 15. Qc2 {[%emt 0:07:05]} Nc4 {[%emt 0:13:59]} 16. Bc1 {[%emt 0:01:23]} Nde5 {[%emt 0:00:43]} 17. Rb1 {[%emt 0:20:52]} Nxf3+ {[%emt 0:04:59]} 18. Bxf3 {[%emt 0:00:07]} Ne5 {[%emt 0:16:07]} 19. Bg2 {[%emt 0:01:15]} Bd7 {[%emt 0:01:11]} 20. b4 {[%emt 0:07:37]} b6 {[%emt 0:02:04]} 21. bxc5 {[%emt 0:05:22]} bxc5 {[%emt 0:00:06]} 22. Bf4 {[%emt 0:05:08]} f5 {[%emt 0:15:20]} 23. Qd2 {[%emt 0:15:53]} Rab8 {[%emt 0:05:27]} 24. Rec1 {[%emt 0:07:34]} Rfc8 {[%emt 0:12:21]} 25. a5 {[%emt 0:03:13]} Qd8 {[%emt 0:02:39]} 26. Qa2 {[%emt 0:01:08]} Rb4 {[%emt 0:01:15]} 27. Rxb4 {[%emt 0:07:15]} cxb4 {[%emt 0:00:06]} 28. Nd1 {[%emt 0:00:06]} Rxc1 {[%emt 0:04:15]} 29. Bxc1 {[%emt 0:00:04]} Bb5 {[%emt 0:00:15]} 30. e4 {[%emt 0:03:37]} fxe4 {[%emt 0:04:40]} 31. Bxe4 {[%emt 0:01:28]} Nc4 {[%emt 0:00:16]} 32. Bd3 {[%emt 0:02:44]} Nxa5 {[%emt 0:05:07]} 33. Bxb5 {[%emt 0:00:18]} axb5 {[%emt 0:00:04]} 34. Bd2 {[%emt 0:00:41]} b3 {[%emt 0:04:59]} 35. Qxa5 {[%emt 0:01:06]} Qxa5 {[%emt 0:00:05]} 36. Bxa5 {[%emt 0:00:03]} b2 {[%emt 0:00:22]} 37. Nxb2 {[%emt 0:00:05]} Bxb2 {[%emt 0:00:04]} 38. Bb4 {[%emt 0:02:10]} Be5 {[%emt 0:00:06]} 39. Kg2 {[%emt 0:01:37]} g5 {[%emt 0:01:25]} 40. Kf3 {[%emt 0:01:56]} Kf7 {[%emt 0:01:52]} 41. Kg4 {[%emt 0:06:51]} Bf6 {[%emt 0:07:27]} 42. Bxd6 {[%emt 0:09:16]} Be7 {[%emt 0:00:10]} 43. Be5 {[%emt 0:00:10]} b4 {[%emt 0:00:31]} 44. Kf5 {[%emt 0:07:18]} b3 {[%emt 0:00:17]} 45. Bb2 {[%emt 0:01:37]} g4 {[%emt 0:02:33]} 46. Kxg4 {[%emt 0:01:38]} Bf6 {[%emt 0:00:06]} 47. Ba3 {[%emt 0:00:41]} Kg6 {[%emt 0:01:47]} 48. Kf4 {[%emt 0:01:53]} b2 {[%emt 0:02:15]} 49. Bxb2 {[%emt 0:00:03]} Bxb2 {[%emt 0:00:04]} 50. d6 {[%emt 0:02:56]} Kf6 {[%emt 0:00:39]} 51. d7 {[%emt 0:01:14]} Ke7 {[%emt 0:00:05]} 52. Kf5 {[%emt 0:00:47]} Kxd7 {[%emt 0:00:13]} 53. h4 {[%emt 0:00:15]} Bd4 {[%emt 0:01:48]} 54. f4 {[%emt 0:00:33]} Bf2 {[%emt 0:00:06]} 55. Kg5 {[%emt 0:00:22]} Bxg3 {[%emt 0:00:10]} 56. Kh6 {[%emt 0:00:23]} Bxh4 {[%emt 0:00:15]} 1/2-1/2

[Event "27th OIBM 2024"]
[Site "Gmund am Tegernsee"]
[Date "2024.10.27"]
[Round "2.18"]
[White "Dolzhykova, Kateryna"]
[Black "Nagel, Bernhard"]
[Result "1-0"]
[ECO "B12"]
[WhiteElo "2345"]
[BlackElo "2154"]
[Annotator "RC"]
[PlyCount "71"]
[EventDate "2024.09.16"]
[EventType "swiss"]
[EventCountry "GER"]
[SourceTitle "playchess.com"]
[Source "ChessBase"]
[SourceQuality "1"]
[TimeControl "40/5400+30:1800+30"]

1. e4 {[%emt 0:00:04]} c6 {[%emt 0:00:06]} 2. d4 {[%emt 0:02:23]} d5 {[%emt 0:00:07]} 3. e5 {[%emt 0:00:10]} Bf5 {[%emt 0:00:10]} 4. Nc3 {[%emt 0:00:40]} Qb6 {[%emt 0:03:48]} 5. g4 {[%emt 0:03:27]} Bd7 {[%emt 0:00:15]} 6. Bg2 {[%emt 0:05:53]} e6 {[%emt 0:01:59]} 7. Nge2 {[%emt 0:00:06]} c5 {[%emt 0:00:54]} 8. Be3 {[%emt 0:00:58]} Nc6 {[%emt 0:05:15]} 9. Qd2 {[%emt 0:04:04]} cxd4 {[%emt 0:08:56]} 10. Nxd4 {[%emt 0:02:14]} Nxd4 {[%emt 0:01:41]} 11. Bxd4 {[%emt 0:01:39]} Bc5 {[%emt 0:00:14]} 12. Bxc5 {[%emt 0:09:38]} Qxc5 {[%emt 0:00:07]} 13. O-O-O {[%emt 0:00:12]} Ne7 {[%emt 0:01:26]} 14. Ne4 {[%emt 0:00:34]} Qb6 {[%emt 0:01:12]} 15. Nd6+ {[%emt 0:01:43]} Kf8 {[%emt 0:00:08]} 16. Qf4 {[%emt 0:03:20]} Be8 {[%emt 0:00:25]} 17. Rd3 {[%emt 0:00:35]} Ng6 {[%emt 0:04:00]} 18. Qg3 {[%emt 0:00:14]} Qb4 {[%emt 0:01:16]} 19. Rf3 {[%emt 0:02:42]} Rd8 {[%emt 0:01:19]} 20. a3 {[%emt 0:16:22]} Qd4 {[%emt 0:02:24]} 21. Re1 {[%emt 0:05:48]} Nxe5 {[%emt 0:10:38]} 22. Rf4 {[%emt 0:05:20]} Nd3+ {[%emt 0:01:39]} 23. cxd3 {[%emt 0:00:06]} Qc5+ {[%emt 0:00:45]} 24. Nc4 {[%emt 0:00:26]} g5 {[%emt 0:07:02]} 25. Rf5 {[%emt 0:12:53]} Qd4 {[%emt 0:14:51]} 26. Rxe6 {[%emt 0:04:35]} dxc4 {[%emt 0:00:21]} 27. Qc7 {[%emt 0:01:44]} Rd7 {[%emt 0:03:36]} 28. Rxe8+ {[%emt 0:03:11]} Kxe8 {[%emt 0:02:53]} 29. Qb8+ {[%emt 0:00:01]} Rd8 {[%emt 0:03:59]} 30. Qxb7 {[%emt 0:00:03]} f6 {[%emt 0:03:26]} 31. Qg7 {[%emt 0:00:12]} Rd6 {[%emt 0:04:40]} 32. Qxh8+ {[%emt 0:00:10]} Ke7 {[%emt 0:00:30]} 33. Qg7+ {[%emt 0:00:50]} Ke6 {[%emt 0:00:46]} 34. Qg8+ {[%emt 0:01:09]} Ke7 {[%emt 0:02:27]} 35. Qxc4 {[%emt 0:00:08]} Qb6 {[%emt 0:00:23]} 36. Qc5 {[%emt 0:00:45]} 1-0

[Event "27th OIBM 2024"]
[Site "Gmund am Tegernsee"]
[Date "2024.10.27"]
[Round "2.19"]
[White "Beisteiner, Joachim"]
[Black "Becker, Matthias"]
[Result "1-0"]
[ECO "C02"]
[WhiteElo "2129"]
[BlackElo "2338"]
[Annotator "RC"]
[PlyCount "107"]
[EventDate "2024.09.16"]
[EventType "swiss"]
[EventCountry "GER"]
[SourceTitle "playchess.com"]
[Source "ChessBase"]
[SourceQuality "1"]
[TimeControl "40/5400+30:1800+30"]

1. e4 {[%emt 0:00:05]} e6 {[%emt 0:00:08]} 2. d4 {[%emt 0:00:10]} d5 {[%emt 0:00:07]} 3. e5 {[%emt 0:00:15]} c5 {[%emt 0:00:20]} 4. c3 {[%emt 0:00:13]} Nc6 {[%emt 0:00:22]} 5. Nf3 {[%emt 0:00:13]} Qb6 {[%emt 0:00:09]} 6. a3 {[%emt 0:00:21]} c4 {[%emt 0:00:32]} 7. Nbd2 {[%emt 0:00:25]} Na5 {[%emt 0:00:20]} 8. Rb1 {[%emt 0:00:34]} Bd7 {[%emt 0:00:47]} 9. h4 {[%emt 0:00:35]} Ne7 {[%emt 0:01:01]} 10. h5 {[%emt 0:04:13]} h6 {[%emt 0:00:08]} 11. b4 {[%emt 0:05:00]} cxb3 {[%emt 0:00:07]} 12. Nxb3 {[%emt 0:00:13]} Ba4 {[%emt 0:02:00]} 13. Nfd2 {[%emt 0:00:34]} Rc8 {[%emt 0:03:39]} 14. Rh3 {[%emt 0:01:58]} Nec6 {[%emt 0:07:09]} 15. Bd3 {[%emt 0:01:22]} Nxb3 {[%emt 0:13:12]} 16. Nxb3 {[%emt 0:00:42]} Na5 {[%emt 0:23:24]} 17. Bc2 {[%emt 0:01:08]} Nxb3 {[%emt 0:00:06]} 18. Bxb3 {[%emt 0:00:09]} Bxb3 {[%emt 0:00:05]} 19. Rxb3 {[%emt 0:02:19]} Qc6 {[%emt 0:00:40]} 20. Rg3 {[%emt 0:07:39]} Rc7 {[%emt 0:01:46]} 21. Bd2 {[%emt 0:08:48]} Qc4 {[%emt 0:02:39]} 22. Rb1 {[%emt 0:10:49]} Kd8 {[%emt 0:00:05]} 23. f4 {[%emt 0:07:37]} Kc8 {[%emt 0:07:59]} 24. Qf3 {[%emt 0:03:02]} a5 {[%emt 0:14:24]} 25. f5 {[%emt 0:02:31]} Bxa3 {[%emt 0:04:57]} 26. Rxg7 {[%emt 0:01:38]} Bf8 {[%emt 0:02:34]} 27. Rg4 {[%emt 0:03:39]} Be7 {[%emt 0:00:22]} 28. f6 {[%emt 0:02:33]} Bd8 {[%emt 0:04:54]} 29. Qe2 {[%emt 0:01:16]} Qa2 {[%emt 0:02:51]} 30. Qb5 {[%emt 0:12:19]} Qc2 {[%emt 0:00:27]} 31. Rb2 {[%emt 0:01:46]} Qf5 {[%emt 0:00:10]} 32. Rg7 {[%emt 0:01:31]} Qxh5 {[%emt 0:03:42]} 33. Qxa5 {[%emt 0:02:48]} Kb8 {[%emt 0:01:21]} 34. Ra2 {[%emt 0:06:23]} Kc8 {[%emt 0:01:10]} 35. Qb5 {[%emt 0:03:45]} Kb8 {[%emt 0:00:32]} 36. Qd3 {[%emt 0:02:38]} Qh1+ {[%emt 0:02:26]} 37. Kf2 {[%emt 0:02:37]} h5 {[%emt 0:01:13]} 38. Qf1 {[%emt 0:01:13]} Qh4+ {[%emt 0:00:22]} 39. Kg1 {[%emt 0:00:22]} Qe4 {[%emt 0:00:29]} 40. Qa1 {[%emt 0:00:12]} b6 {[%emt 0:01:18]} 41. Ra8+ {[%emt 0:33:10]} Kb7 {[%emt 0:01:59]} 42. Ra7+ {[%emt 0:00:00]} Kb8 {[%emt 0:00:17]} 43. Rxc7 {[%emt 0:00:00]} Bxc7 {[%emt 0:00:09]} 44. Rxf7 {[%emt 0:00:00]} h4 {[%emt 0:01:11]} 45. Qe1 {[%emt 0:00:00]} Qf5 {[%emt 0:04:23]} 46. Qf2 {[%emt 0:00:00]} Qb1+ {[%emt 0:00:29]} 47. Kh2 {[%emt 0:00:00]} h3 {[%emt 0:05:41]} 48. g3 {[%emt 0:00:00]} Qe4 {[%emt 0:03:32]} 49. Rg7 {[%emt 0:00:00]} Kb7 {[%emt 0:01:22]} 50. f7 {[%emt 0:00:00]} Ra8 {[%emt 0:00:15]} 51. Be1 {[%emt 0:00:00]} Rf8 {[%emt 0:03:33]} 52. Bd2 {[%emt 0:00:00]} Ra8 {[%emt 0:00:26]} 53. Bc1 {[%emt 0:00:00]} b5 {[%emt 0:06:04]} 54. Rg8 {[%emt 0:00:00]} 1-0

[Event "27th OIBM 2024"]
[Site "Gmund am Tegernsee"]
[Date "2024.10.27"]
[Round "2.20"]
[White "Weber, Ulrich"]
[Black "Southcott-Moyers, Indy"]
[Result "1/2-1/2"]
[ECO "A06"]
[WhiteElo "2334"]
[BlackElo "2143"]
[Annotator "RC"]
[PlyCount "76"]
[EventDate "2024.09.16"]
[EventType "swiss"]
[EventCountry "GER"]
[SourceTitle "playchess.com"]
[Source "ChessBase"]
[SourceQuality "1"]
[TimeControl "40/5400+30:1800+30"]

1. Nf3 {[%emt 0:04:34]} d5 {[%emt 0:00:05]} 2. b3 {[%emt 0:00:12]} c5 {[%emt 0:02:21]} 3. e3 {[%emt 0:03:50]} Nf6 {[%emt 0:00:07]} 4. Bb2 {[%emt 0:00:11]} g6 {[%emt 0:00:19]} 5. c4 {[%emt 0:03:02]} dxc4 {[%emt 0:03:09]} 6. bxc4 {[%emt 0:13:20]} Bg7 {[%emt 0:05:37]} 7. Be2 {[%emt 0:00:23]} O-O {[%emt 0:01:50]} 8. O-O {[%emt 0:00:10]} b6 {[%emt 0:05:36]} 9. d4 {[%emt 0:15:48]} cxd4 {[%emt 0:04:12]} 10. exd4 {[%emt 0:00:11]} Nc6 {[%emt 0:02:50]} 11. Re1 {[%emt 0:12:20]} Ba6 {[%emt 0:13:02]} 12. Nbd2 {[%emt 0:04:01]} Rc8 {[%emt 0:05:26]} 13. Nb3 {[%emt 0:11:29]} Ne4 {[%emt 0:10:17]} 14. Rc1 {[%emt 0:04:41]} Nd6 {[%emt 0:17:41]} 15. Qd2 {[%emt 0:03:01]} Re8 {[%emt 0:03:41]} 16. Bf1 {[%emt 0:05:34]} Nb8 {[%emt 0:04:46]} 17. Qb4 {[%emt 0:02:07]} Bb7 {[%emt 0:02:21]} 18. Ne5 {[%emt 0:01:42]} Nc6 {[%emt 0:00:49]} 19. Qa3 {[%emt 0:01:10]} Nf5 {[%emt 0:02:25]} 20. Rcd1 {[%emt 0:03:55]} Qc7 {[%emt 0:00:54]} 21. Nxc6 {[%emt 0:03:43]} Bxc6 {[%emt 0:00:17]} 22. d5 {[%emt 0:00:45]} Bxb2 {[%emt 0:00:13]} 23. Qxb2 {[%emt 0:01:33]} Ba4 {[%emt 0:00:58]} 24. Bd3 {[%emt 0:00:52]} Nd6 {[%emt 0:00:11]} 25. Rc1 {[%emt 0:00:08]} Bxb3 {[%emt 0:03:09]} 26. axb3 {[%emt 0:00:01]} a5 {[%emt 0:00:10]} 27. h4 {[%emt 0:00:11]} Nb7 {[%emt 0:01:37]} 28. h5 {[%emt 0:00:19]} Nc5 {[%emt 0:00:10]} 29. Bb1 {[%emt 0:00:14]} e5 {[%emt 0:01:25]} 30. dxe6 {[%emt 0:00:57]} Nxe6 {[%emt 0:01:16]} 31. h6 {[%emt 0:00:30]} Qe7 {[%emt 0:00:13]} 32. Re3 {[%emt 0:01:06]} Qf8 {[%emt 0:00:15]} 33. Bf5 {[%emt 0:02:17]} Qxh6 {[%emt 0:01:15]} 34. Bxe6 {[%emt 0:00:05]} Rxe6 {[%emt 0:01:24]} 35. Rxe6 {[%emt 0:00:06]} fxe6 {[%emt 0:00:01]} 36. Re1 {[%emt 0:00:15]} Qg7 {[%emt 0:01:40]} 37. Qxg7+ {[%emt 0:00:33]} Kxg7 {[%emt 0:00:05]} 38. Rxe6 {[%emt 0:00:03]} a4 {[%emt 0:00:23]} 1/2-1/2

[Event "27th OIBM 2024"]
[Site "Gmund am Tegernsee"]
[Date "2024.10.27"]
[Round "2.21"]
[White "Wagner, Julian"]
[Black "Zude, Arno"]
[Result "1/2-1/2"]
[ECO "D37"]
[WhiteElo "2123"]
[BlackElo "2332"]
[Annotator "RC"]
[PlyCount "81"]
[EventDate "2024.09.16"]
[EventType "swiss"]
[EventCountry "GER"]
[SourceTitle "playchess.com"]
[Source "ChessBase"]
[SourceQuality "1"]
[TimeControl "40/5400+30:1800+30"]

1. d4 {[%emt 0:00:02]} Nf6 {[%emt 0:00:10]} 2. c4 {[%emt 0:00:05]} e6 {[%emt 0:00:13]} 3. Nf3 {[%emt 0:00:04]} d5 {[%emt 0:00:08]} 4. Nc3 {[%emt 0:00:05]} a6 {[%emt 0:00:22]} 5. cxd5 {[%emt 0:00:07]} exd5 {[%emt 0:00:09]} 6. Qc2 {[%emt 0:00:09]} Bd6 {[%emt 0:12:43]} 7. Bg5 {[%emt 0:00:22]} Be6 {[%emt 0:03:39]} 8. e3 {[%emt 0:00:18]} Nbd7 {[%emt 0:01:03]} 9. Bd3 {[%emt 0:00:53]} c6 {[%emt 0:03:41]} 10. O-O {[%emt 0:00:19]} h6 {[%emt 0:01:58]} 11. Bh4 {[%emt 0:00:35]} Qc7 {[%emt 0:11:06]} 12. Bg3 {[%emt 0:03:32]} Bxg3 {[%emt 0:00:25]} 13. hxg3 {[%emt 0:00:12]} O-O {[%emt 0:00:22]} 14. Nh4 {[%emt 0:05:52]} Rfe8 {[%emt 0:01:06]} 15. b4 {[%emt 0:03:04]} Qd6 {[%emt 0:03:47]} 16. Rab1 {[%emt 0:05:46]} b5 {[%emt 0:05:14]} 17. a4 {[%emt 0:01:09]} Nb6 {[%emt 0:01:05]} 18. Nf3 {[%emt 0:01:12]} Nc4 {[%emt 0:05:10]} 19. Bxc4 {[%emt 0:00:34]} bxc4 {[%emt 0:00:11]} 20. Rfe1 {[%emt 0:04:15]} g6 {[%emt 0:05:47]} 21. e4 {[%emt 0:02:57]} dxe4 {[%emt 0:06:15]} 22. Ne5 {[%emt 0:02:12]} Qxd4 {[%emt 0:05:37]} 23. Nxc6 {[%emt 0:00:12]} Qd6 {[%emt 0:04:22]} 24. b5 {[%emt 0:00:58]} axb5 {[%emt 0:04:04]} 25. axb5 {[%emt 0:00:12]} Bf5 {[%emt 0:00:40]} 26. Rbd1 {[%emt 0:00:59]} Qc5 {[%emt 0:01:27]} 27. Qd2 {[%emt 0:04:39]} Ra3 {[%emt 0:04:31]} 28. Rc1 {[%emt 0:00:45]} Kg7 {[%emt 0:10:49]} 29. Nd4 {[%emt 0:02:07]} Bc8 {[%emt 0:01:37]} 30. Nc2 {[%emt 0:00:24]} Ra7 {[%emt 0:01:19]} 31. Ne3 {[%emt 0:00:55]} Be6 {[%emt 0:00:52]} 32. Qb2 {[%emt 0:02:52]} Qa3 {[%emt 0:01:29]} 33. Qc2 {[%emt 0:00:18]} Qb3 {[%emt 0:01:54]} 34. Nxe4 {[%emt 0:00:40]} Qxc2 {[%emt 0:00:55]} 35. Nxc2 {[%emt 0:00:06]} Nxe4 {[%emt 0:01:20]} 36. Rxe4 {[%emt 0:00:09]} Rb8 {[%emt 0:00:51]} 37. Nd4 {[%emt 0:01:54]} Bd5 {[%emt 0:01:23]} 38. Re5 {[%emt 0:03:17]} Rd7 {[%emt 0:00:29]} 39. Nc6 {[%emt 0:00:46]} Rxb5 {[%emt 0:01:02]} 40. Ne7 {[%emt 0:00:07]} c3 {[%emt 0:00:20]} 41. Rxd5 {[%emt 0:30:29]} 1/2-1/2